fUST/lending_fUST_20240226
["ID","MTS","AMOUNT","RATE_DAILY","PERIOD"]
[315196796,1708924247663,-500.0,0.0002,2]
[315196797,1708924247672,-500.0,0.0002,2]
[315196798,1708924247682,-2280.26,0.0002,2]
[315196799,1708924247692,-508.76,0.0002,2]
[315196800,1708924247703,-500.0,0.0002,2]
[315196801,1708924247713,-500.0,0.0002,2]
[315196802,1708924247722,-501.85263397,0.0002,2]
[315196803,1708924247732,-2134.82,0.0002,2]
[315196804,1708924247742,-225.36072718,0.0002,2]
[315196805,1708924247751,-500.0,0.0002,2]
[315196806,1708924247760,-500.0,0.0002,2]
[315196807,1708924247769,-500.0,0.0002,2]
[315196808,1708924247780,-477.80192335,0.0002,2]
[315196809,1708924247790,-500.0,0.0002,2]
[315196810,1708924247799,-500.0,0.0002,2]
[315196811,1708924247808,-282.82728076,0.0002,2]
[315196812,1708924247817,-500.0,0.0002,2]
[315196813,1708924247826,-620.57114582,0.0002,2]
[315196814,1708924247835,-23200.88,0.0002,2]
[315196815,1708924247845,-500.0,0.0002,2]
[315196816,1708924247855,-1777.55,0.0002,2]
[315196817,1708924247864,-643.03,0.0002,2]
[315196818,1708924247874,-2316.66,0.0002,2]
[315196819,1708924247884,-500.0,0.0002,2]
[315196820,1708924247893,-500.0,0.0002,2]
[315196821,1708924247902,-8228.19,0.0002,2]
[315196822,1708924247911,-500.0,0.0002,2]
[315196823,1708924247920,-500.0,0.0002,2]
[315196824,1708924247929,-500.0,0.0002,2]
[315196825,1708924247938,-500.0,0.0002,2]
[315196826,1708924247948,-500.0,0.0002,2]
[315196827,1708924247957,-503.94397976,0.0002,2]
[315196828,1708924247966,-500.0,0.0002,2]
[315196829,1708924247975,-502.65434076,0.0002,2]
[315196830,1708924247987,-3490.18,0.0002,2]
[315196831,1708924247996,-838.64,0.0002,2]
[315196832,1708924248006,-3075.6,0.0002,2]
[315196833,1708924248014,-4538.35,0.0002,2]
[315196834,1708924248023,-151.0,0.0002,2]
[315196835,1708924248032,-151.0,0.0002,2]
[315196836,1708924248041,-151.0,0.0002,2]
[315196837,1708924248051,-151.0,0.0002,2]
[315196838,1708924248060,-1541.61,0.0002,2]
[315196839,1708924248069,-151.0,0.0002,2]
[315196840,1708924248078,-2509.56,0.0002,2]
[315196841,1708924248088,-151.0,0.0002,2]
[315196842,1708924248097,-500.0,0.0002,2]
[315196843,1708924248106,-500.0,0.0002,2]
[315196844,1708924248115,-3179.94,0.0002,2]
[315196845,1708924248124,-22919.48,0.0002,2]
[315196846,1708924248133,-1651.22,0.0002,2]
[315196847,1708924248142,-500.0,0.0002,2]
[315196848,1708924248151,-1269.93,0.0002,2]
[315196849,1708924248160,-500.0,0.0002,2]
[315196850,1708924248169,-755.31,0.0002,2]
[315196851,1708924248179,-2267.83,0.0002,2]
[315196852,1708924248188,-500.0,0.0002,2]
[315196853,1708924248198,-500.0,0.0002,2]
[315196854,1708924248207,-166.666666,0.00020076,2]
[315196855,1708924248216,-300.0,0.000201,8]
[315196856,1708924248225,-2179.05314101,0.00020154,2]
[315196857,1708924248235,-393.69383371,0.00020157,2]
[315196858,1708924248243,-243.58118859,0.00020162,2]
[315196859,1708924248252,-1000.0,0.00020166,2]
[315196860,1708924248261,-1000.0,0.00020166,2]
[315196861,1708924248270,-1000.0,0.00020166,2]
[315196862,1708924248280,-1000.0,0.00020166,2]
[315196863,1708924248290,-1000.0,0.00020166,2]
[315196864,1708924248299,-3485.26649406,0.00020166,2]
[315196865,1708924248308,-1000.0,0.00020166,2]
[315196866,1708924248317,-1000.0,0.00020166,2]
[315196867,1708924248326,-1000.0,0.00020166,2]
[315196868,1708924248335,-1000.0,0.00020166,2]
[315196869,1708924248344,-13027.28922942,0.00020166,2]
[315196870,1708924248353,-1000.0,0.00020166,2]
[315196871,1708924248362,-1000.0,0.00020166,2]
[315196872,1708924248371,-1000.0,0.00020166,2]
[315196873,1708924248380,-1000.0,0.00020166,2]
[315196874,1708924248389,-3513.41825336,0.00020166,2]
[315196875,1708924248398,-1000.0,0.00020166,2]
[315196876,1708924248407,-1000.0,0.00020166,2]
[315196877,1708924248416,-1000.0,0.00020166,2]
[315196878,1708924248425,-24054.89816396,0.00020166,2]
[315196879,1708924248434,-1000.0,0.00020166,2]
[315196880,1708924248443,-6003.68469707,0.00020166,2]
[315196881,1708924248452,-1000.0,0.00020166,2]
[315196882,1708924248462,-1000.0,0.00020166,2]
[315196883,1708924248470,-1000.0,0.00020166,2]
[315196884,1708924248479,-1000.0,0.00020166,2]
[315196885,1708924248488,-1000.0,0.00020167,2]
[315196886,1708924248497,-1000.0,0.00020167,2]
[315196887,1708924248507,-243.58118859,0.00020168,2]
[315196888,1708924248516,-243.58118859,0.00020168,2]
[315196889,1708924248525,-6507.21,0.00020169,2]
[315196890,1708924248534,-243.58118859,0.00020169,2]
[315196891,1708924248544,-1000.0,0.00020171,2]
[315196892,1708924248553,-1000.0,0.00020171,2]
[315196893,1708924248562,-1000.0,0.00020171,2]
[315196894,1708924248572,-592.7,0.00020171,2]
[315196895,1708924248581,-592.7,0.00020171,2]
[315196896,1708924248591,-592.7,0.00020171,2]
[315196897,1708924248600,-592.7,0.00020171,2]
[315196898,1708924248609,-592.83147905,0.00020171,2]
[315196899,1708924248619,-243.58118859,0.00020171,2]
[315196900,1708924248627,-243.58118859,0.00020171,2]
[315196901,1708924248637,-243.58118859,0.00020171,2]
[315196902,1708924248646,-243.58118859,0.00020172,2]
[315196903,1708924248656,-243.58118859,0.00020172,2]
[315196904,1708924248665,-243.58118859,0.00020172,2]
[315196905,1708924248674,-500.0,0.00020172,2]
[315196906,1708924248684,-500.0,0.00020172,2]
[315196907,1708924248693,-398.47343863,0.00020172,2]
[315196908,1708924248705,-532.83946543,0.00020172,2]
[315196909,1708924248715,-500.0,0.00020172,2]
[315196910,1708924248724,-500.0,0.00020172,2]
[315196911,1708924248733,-500.0,0.00020172,2]
[315196912,1708924248743,-500.0,0.00020172,2]
[315196913,1708924248752,-500.0,0.00020172,2]
[315196914,1708924248761,-277.484245,0.00020172,2]
[315196915,1708924248771,-277.484245,0.00020172,2]
[315196916,1708924248781,-243.58118859,0.00020172,2]
[315196917,1708924248791,-243.58118859,0.00020172,2]
[315196918,1708924248801,-243.58118859,0.00020173,2]
[315196919,1708924248810,-5000.0,0.00020173,2]
[315196920,1708924248820,-5000.0,0.00020173,2]
[315196921,1708924248828,-5000.0,0.00020173,2]
[315196922,1708924248838,-5000.0,0.00020173,2]
[315196923,1708924248847,-9308.15807199,0.00020173,2]
[315196924,1708924248856,-5000.0,0.00020173,2]
[315196925,1708924248865,-6323.65088321,0.00020173,2]
[315196926,1708924248874,-5000.0,0.00020173,2]
[315196927,1708924248883,-5000.0,0.00020173,2]
[315196928,1708924248892,-5000.0,0.00020173,2]
[315196929,1708924248901,-5000.0,0.00020173,2]
[315196930,1708924248910,-50000.0,0.00020173,2]
[315196931,1708924248919,-50000.0,0.00020173,2]
[315196932,1708924249003,-60575.29461149,0.00020173,2]
[315196933,1708924249012,-5000.0,0.00020173,2]
[315196934,1708924249021,-5000.0,0.00020173,2]
[315196935,1708924249030,-5000.0,0.00020173,2]
[315196936,1708924249040,-5000.0,0.00020173,2]
[315196937,1708924249050,-5000.0,0.00020173,2]
[315196938,1708924249058,-233.815164,0.00020173,2]
[315196939,1708924249068,-277.484245,0.00020173,2]
[315196940,1708924249077,-277.484245,0.00020173,2]
[315196941,1708924249086,-277.484245,0.00020173,2]
[315196942,1708924249095,-277.484245,0.00020173,2]
[315196944,1708924249105,-151.0,0.00020173,2]
[315196946,1708924249114,-151.0,0.00020173,2]
[315196947,1708924249123,-151.0,0.00020173,2]
[315196948,1708924249133,-7963.47468185,0.00020173,2]
[315196949,1708924249142,-5000.0,0.00020173,2]
[315196950,1708924249152,-5000.0,0.00020173,2]
[315196952,1708924249162,-1813.61263,0.00020173,2]
[315196954,1708924249171,-1813.61263,0.00020173,2]
[315196956,1708924249180,-1813.61263,0.00020173,2]
[315196958,1708924249189,-1813.61263,0.00020173,2]
[315196959,1708924249198,-1813.61263,0.00020173,2]
[315196961,1708924249207,-1813.61263,0.00020173,2]
[315196963,1708924249217,-5000.0,0.00020173,2]
[315196965,1708924249226,-5000.0,0.00020173,2]
[315196966,1708924249235,-5000.0,0.00020173,2]
[315196967,1708924249244,-50000.0,0.00020173,2]
[315196968,1708924249254,-50000.0,0.00020173,2]
[315196969,1708924249263,-50000.0,0.00020173,2]
[315196970,1708924249271,-93948.01290336,0.00020173,2]
[315196971,1708924249281,-5000.0,0.00020173,2]
[315196972,1708924249290,-5000.0,0.00020173,2]
[315196973,1708924249299,-8864.10017939,0.00020173,2]
[315196974,1708924249308,-5000.0,0.00020173,2]
[315196975,1708924249317,-151.0,0.00020173,2]
[315196976,1708924249326,-151.0,0.00020173,2]
[315196977,1708924249334,-151.0,0.00020173,2]
[315196978,1708924249343,-151.0,0.00020173,2]
[315196979,1708924249352,-151.0,0.00020173,2]
[315196980,1708924249361,-151.0,0.00020173,2]
[315196981,1708924249370,-151.0,0.00020173,2]
[315196982,1708924249379,-151.0,0.00020173,2]
[315196983,1708924249390,-231.161232,0.00020173,2]
[315196984,1708924249400,-276.129419,0.00020173,2]
[315196985,1708924249409,-5000.0,0.00020173,2]
[315196986,1708924249419,-50000.0,0.00020173,2]
[315196987,1708924249427,-1000.0,0.00020174,2]
[315196988,1708924249436,-243.58118859,0.00020175,2]
[315196989,1708924249445,-243.58118859,0.00020175,2]
[315196990,1708924249454,-243.58118859,0.00020175,2]
[315196991,1708924249463,-243.58118859,0.00020175,2]
[315196992,1708924249473,-1000.0,0.00020175,2]
[315196993,1708924249482,-1000.0,0.00020175,2]
[315196994,1708924249491,-1000.0,0.00020175,2]
[315196995,1708924249500,-1000.0,0.00020175,2]
[315196996,1708924249510,-1000.0,0.00020175,2]
[315196997,1708924249519,-3478.09995855,0.00020176,2]
[315196998,1708924249528,-1000.0,0.00020176,2]
[315196999,1708924249537,-8359.76516939,0.00020176,2]
[315197000,1708924249546,-1000.0,0.00020176,2]
[315197001,1708924249555,-1000.0,0.00020176,2]
[315197002,1708924249564,-4198.18159625,0.00020176,2]
[315197003,1708924249573,-2092.63678207,0.00020176,2]
[315197004,1708924249582,-1000.0,0.00020176,2]
[315197005,1708924249591,-1000.0,0.00020176,2]
[315197006,1708924249600,-1000.0,0.00020176,2]
[315197007,1708924249609,-1000.0,0.00020176,2]
[315197008,1708924249618,-1788.77133414,0.00020176,2]
[315197009,1708924249626,-1000.0,0.00020176,2]
[315197010,1708924249636,-3079.55275122,0.00020176,2]
[315197011,1708924249645,-2559.04169373,0.00020176,2]
[315197012,1708924249654,-277.484245,0.00020176,2]
[315197013,1708924249663,-277.484245,0.00020176,2]
[315197014,1708924249673,-1813.61263,0.00020176,2]
[315197015,1708924249682,-1813.61263,0.00020176,2]
[315197016,1708924249691,-1533.6495915,0.00020177,2]
[315197017,1708924249703,-1000.0,0.00020177,2]
[315197018,1708924249713,-4184.7105851,0.00020177,2]
[315197019,1708924249722,-2886.3319554,0.00020177,2]
[315197020,1708924249730,-243.58118859,0.00020177,2]
[315197021,1708924249739,-243.58118859,0.00020177,2]
[315197022,1708924249749,-7455.67583454,0.00020178,2]
[315197023,1708924249758,-1000.0,0.00020178,2]
[315197024,1708924249767,-243.58118859,0.00020181,2]
[315197025,1708924249776,-3211.33071491,0.00020182,2]
[315197026,1708924249786,-500.0,0.00020193,2]
[315197027,1708924249795,-500.0,0.00020193,2]
[315197028,1708924249804,-500.0,0.00020193,2]
[315197029,1708924249813,-319.09963093,0.00020193,2]
[315197030,1708924249822,-3374.30144809,0.00020194,2]
[315197031,1708924249831,-472.45492363,0.00020195,2]
[315197032,1708924249839,-1454.19912563,0.00020195,2]
[315197033,1708924249849,-243.58118859,0.00020272,2]
[315197034,1708924249857,-243.58118859,0.00020272,2]
[315197035,1708924249866,-243.58118859,0.00020272,2]
[315197036,1708924249875,-243.58118859,0.00020272,2]
[315197037,1708924249885,-243.58118859,0.00020272,2]
[315197038,1708924249894,-500.0,0.00020273,2]
[315197039,1708924249903,-194.04723071,0.00020273,2]
[315197040,1708924249912,-500.0,0.00020273,2]
[315197041,1708924249921,-500.0,0.00020273,2]
[315197042,1708924249930,-500.0,0.00020273,2]
[315197043,1708924249939,-500.0,0.00020273,2]
[315197044,1708924249947,-1356.05,0.00020273,2]
[315197045,1708924249956,-500.0,0.00020273,2]
[315197046,1708924249965,-500.0,0.00020273,2]
[315197047,1708924249974,-469.51232523,0.00020273,2]
[315197048,1708924249983,-500.0,0.00020273,2]
[315197049,1708924249992,-500.0,0.00020273,2]
[315197050,1708924250001,-500.0,0.00020273,2]
[315197051,1708924250010,-1774.16,0.00020273,2]
[315197052,1708924250019,-773.14,0.00020273,2]
[315197053,1708924250029,-500.0,0.00020273,2]
[315197054,1708924250038,-500.0,0.00020273,2]
[315197055,1708924250047,-277.484245,0.00020273,2]
[315197056,1708924250056,-277.484245,0.00020273,2]
[315197057,1708924250065,-625.55,0.00020273,2]
[315197058,1708924250074,-500.0,0.00020273,2]
[315197059,1708924250083,-452.29044727,0.00020273,2]
[315197060,1708924250091,-500.0,0.00020273,2]
[315197061,1708924250101,-500.0,0.00020273,2]
[315197062,1708924250109,-151.0,0.00020273,2]
[315197063,1708924250118,-151.735874,0.00020273,2]
[315197064,1708924250127,-625.28,0.00020273,2]
[315197065,1708924250137,-500.0,0.00020273,2]
[315197066,1708924250146,-500.0,0.00020273,2]
[315197067,1708924250154,-500.0,0.00020273,2]
[315197068,1708924250163,-500.0,0.00020273,2]
[315197069,1708924250172,-504.61327759,0.00020273,2]
[315197070,1708924250181,-440.74852659,0.00020273,2]
[315197071,1708924250199,-1856.76147341,0.00020273,2]
[315197072,1708924250208,-1783.95,0.00020273,2]
[315197073,1708924250218,-500.0,0.00020273,2]
[315197074,1708924250227,-500.0,0.00020273,2]
[315197075,1708924250236,-500.0,0.00020273,2]
[315197076,1708924250245,-500.0,0.00020273,2]
[315197077,1708924250255,-500.0,0.00020273,2]
[315197078,1708924250264,-500.0,0.00020273,2]
[315197079,1708924250273,-500.0,0.00020273,2]
[315197080,1708924250282,-500.0,0.00020273,2]
[315197081,1708924250291,-500.0,0.00020273,2]
[315197082,1708924250300,-1813.61263,0.00020273,2]
[315197083,1708924250309,-1039.45,0.00020273,2]
[315197084,1708924250318,-1813.61263,0.00020273,2]
[315197085,1708924250327,-500.0,0.00020273,2]
[315197086,1708924250335,-500.0,0.00020273,2]
[315197087,1708924250344,-500.0,0.00020273,2]
[315197088,1708924250353,-500.0,0.00020273,2]
[315197089,1708924250362,-774.92,0.00020273,2]
[315197090,1708924250371,-500.0,0.00020273,2]
[315197091,1708924250379,-238.73773781,0.00020273,2]
[315197092,1708924250389,-1528.2,0.00020273,2]
[315197093,1708924250398,-500.0,0.00020273,2]
[315197094,1708924250407,-411.87418666,0.00020273,2]
[315197095,1708924250416,-11388.11,0.00020273,2]
[315197096,1708924250425,-371.5006517,0.00020273,2]
[315197097,1708924250434,-500.0,0.00020273,2]
[315197098,1708924250443,-1662.0,0.00020273,2]
[315197099,1708924250451,-500.0,0.00020273,2]
[315197100,1708924250460,-4350.42,0.00020273,2]
[315197101,1708924250469,-3002.04,0.00020273,2]
[315197102,1708924250478,-827.43,0.00020273,2]
[315197103,1708924250487,-500.0,0.00020273,2]
[315197104,1708924250496,-884.96,0.00020273,2]
[315197105,1708924250506,-2818.62,0.00020273,2]
[315197106,1708924250515,-500.0,0.00020273,2]
[315197107,1708924250525,-2095.24,0.00020273,2]
[315197108,1708924250534,-500.0,0.00020273,2]
[315197109,1708924250544,-1000.0,0.00020273,2]
[315197110,1708924250555,-500.0,0.00020273,2]
[315197111,1708924250632,-502.22509866,0.00020273,2]
[315197112,1708924250650,-500.0,0.00020273,2]
[315197113,1708924250659,-2280.26,0.00020273,2]
[315197114,1708924250669,-508.76,0.00020273,2]
[315197115,1708924250678,-176.66942179,0.00020273,2]
[315197116,1708924250687,-500.0,0.00020273,2]
[315197117,1708924250698,-2134.82,0.00020273,2]
[315197118,1708924250710,-500.0,0.00020273,2]
[315197119,1708924250720,-500.0,0.00020273,2]
[315197120,1708924250729,-500.0,0.00020273,2]
[315197121,1708924250739,-440.14556433,0.00020273,2]
[315197122,1708924250749,-500.0,0.00020273,2]
[315197123,1708924250758,-500.0,0.00020273,2]
[315197124,1708924250768,-23200.88,0.00020273,2]
[315197125,1708924250779,-500.0,0.00020273,2]
[315197126,1708924250790,-1777.55,0.00020273,2]
[315197127,1708924250800,-643.03,0.00020273,2]
[315197128,1708924250809,-2316.66,0.00020273,2]
[315197129,1708924250819,-500.0,0.00020273,2]
[315197130,1708924250828,-500.0,0.00020273,2]
[315197131,1708924250837,-8228.19,0.00020273,2]
[315197132,1708924250847,-500.0,0.00020273,2]
[315197133,1708924250856,-500.0,0.00020273,2]
[315197134,1708924250865,-500.0,0.00020273,2]
[315197135,1708924250873,-500.0,0.00020273,2]
[315197136,1708924250884,-477.02525582,0.00020273,2]
[315197137,1708924250896,-500.0,0.00020273,2]
[315197138,1708924250906,-3490.18,0.00020273,2]
[315197139,1708924250916,-838.64,0.00020273,2]
[315197140,1708924250925,-3075.6,0.00020273,2]
[315197141,1708924250935,-4538.35,0.00020273,2]
[315197142,1708924250944,-151.0,0.00020273,2]
[315197143,1708924250954,-1541.61,0.00020273,2]
[315197144,1708924250964,-2509.56,0.00020273,2]
[315197145,1708924250973,-500.0,0.00020273,2]
[315197146,1708924250982,-500.0,0.00020273,2]
[315197147,1708924250991,-3179.94,0.00020273,2]
[315197148,1708924251000,-22919.48,0.00020273,2]
[315197149,1708924251010,-1651.22,0.00020273,2]
[315197150,1708924251018,-500.0,0.00020273,2]
[315197151,1708924251028,-1269.93,0.00020273,2]
[315197152,1708924251037,-500.0,0.00020273,2]
[315197153,1708924251047,-755.31,0.00020273,2]
[315197154,1708924251056,-2267.83,0.00020273,2]
[315197155,1708924251067,-500.0,0.00020273,2]
[315197156,1708924251076,-500.0,0.00020273,2]
[315197157,1708924251086,-500.0,0.00020374,2]
[315197158,1708924251096,-500.0,0.00020374,2]
[315197159,1708924251107,-500.0,0.00020374,2]
[315197160,1708924251117,-500.0,0.00020374,2]
[315197161,1708924251127,-500.0,0.00020374,2]
[315197162,1708924251138,-419.42728038,0.00020374,2]
[315197163,1708924251148,-500.0,0.00020374,2]
[315197164,1708924251159,-500.0,0.00020374,2]
[315197165,1708924251168,-500.0,0.00020374,2]
[315197166,1708924251178,-500.0,0.00020374,2]
[315197167,1708924251188,-500.0,0.00020374,2]
[315197168,1708924251197,-500.0,0.00020374,2]
[315197169,1708924251206,-500.0,0.00020374,2]
[315197170,1708924251216,-500.0,0.00020374,2]
[315197171,1708924251225,-500.0,0.00020374,2]
[315197172,1708924251235,-500.0,0.00020374,2]
[315197173,1708924251245,-500.0,0.00020374,2]
[315197174,1708924251254,-500.0,0.00020374,2]
[315197175,1708924251263,-500.0,0.00020374,2]
[315197176,1708924251272,-500.0,0.00020374,2]
[315197177,1708924251282,-500.0,0.00020374,2]
[315197178,1708924251291,-500.0,0.00020374,2]
[315197179,1708924251301,-500.0,0.00020374,2]
[315197180,1708924251311,-500.0,0.00020374,2]
[315197181,1708924251320,-252.35647977,0.00020374,2]
[315197182,1708924251330,-500.0,0.00020374,2]
[315197183,1708924251339,-500.0,0.00020374,2]
[315197184,1708924251348,-500.0,0.00020374,2]
[315197185,1708924251357,-500.0,0.00020374,2]
[315197186,1708924251366,-500.0,0.00020374,2]
[315197187,1708924251375,-500.0,0.00020374,2]
[315197188,1708924251384,-500.0,0.00020374,2]
[315197189,1708924251394,-500.0,0.00020374,2]
[315197190,1708924251411,-500.0,0.00020374,2]
[315197191,1708924251427,-500.0,0.00020374,2]
[315197192,1708924251439,-500.0,0.00020374,2]
[315197193,1708924251453,-500.0,0.00020374,2]
[315197194,1708924251468,-500.0,0.00020374,2]
[315197195,1708924251484,-500.0,0.00020374,2]
[315197196,1708924251498,-500.0,0.00020374,2]
[315197197,1708924251510,-500.0,0.00020374,2]
[315197198,1708924251525,-500.0,0.00020374,2]
[315197199,1708924251538,-436.06944399,0.00020374,2]
[315197200,1708924251551,-500.0,0.00020374,2]
[315197201,1708924251566,-500.0,0.00020374,2]
[315197202,1708924251579,-500.0,0.00020374,2]
[315197203,1708924251594,-500.0,0.00020374,2]
[315197204,1708924251609,-500.0,0.00020374,2]
[315197205,1708924251624,-500.0,0.00020374,2]
[315197206,1708924251636,-500.0,0.00020374,2]
[315197207,1708924251651,-500.0,0.00020374,2]
[315197208,1708924251663,-304.31517726,0.00020374,2]
[315197209,1708924251679,-500.0,0.00020374,2]
[315197210,1708924251693,-277.484245,0.00020374,2]
[315197211,1708924251708,-277.484245,0.00020374,2]
[315197212,1708924251719,-500.0,0.00020374,2]
[315197213,1708924251730,-500.0,0.00020374,2]
[315197214,1708924251743,-500.0,0.00020374,2]
[315197215,1708924251755,-500.0,0.00020374,2]
[315197216,1708924251768,-500.0,0.00020374,2]
[315197217,1708924251779,-500.0,0.00020374,2]
[315197218,1708924251790,-500.0,0.00020374,2]
[315197219,1708924251802,-500.0,0.00020374,2]
[315197220,1708924251815,-213.861249,0.00020374,2]
[315197221,1708924251827,-151.0,0.00020374,2]
[315197222,1708924251839,-50000.0,0.00020375,2]
[315197223,1708924251851,-10828.77841371,0.00020375,2]
[315197263,1708925432073,-299.94859112,0.00018788,2]
[315197265,1708925432082,-653.04920302,0.00018789,2]
[315197267,1708925432091,-159.79442372,0.00018796,2]
[315197269,1708925432100,-245.32582318,0.00018897,2]
[315197271,1708925432109,-158.02445014,0.000189,2]
[315197273,1708925432120,-163.06,0.00019168,3]
[315197275,1708925432128,-489.2,0.00019168,3]
[315197277,1708925432137,-1600.10761346,0.00019176,2]
[315197278,1708925432147,-500.0,0.00019178,2]
[315197280,1708925432156,-500.0,0.00019178,2]
[315197282,1708925432165,-500.0,0.00019178,2]
[315197283,1708925432175,-500.25009152,0.00019178,2]
[315197285,1708925432184,-738.69,0.00019178,2]
[315197287,1708925432193,-581.42135505,0.00019178,2]
[315197289,1708925432202,-500.0,0.00019178,2]
[315197290,1708925432212,-500.0,0.00019178,2]
[315197292,1708925432221,-500.0,0.00019178,2]
[315197294,1708925432230,-500.0,0.00019178,2]
[315197295,1708925432239,-500.0,0.00019178,2]
[315197296,1708925432249,-502.75767001,0.00019178,2]
[315197297,1708925432258,-500.0,0.00019178,2]
[315197298,1708925432268,-500.0,0.00019178,2]
[315197299,1708925432277,-500.39582415,0.00019178,2]
[315197300,1708925432285,-500.0,0.00019178,2]
[315197301,1708925432294,-500.0,0.00019178,2]
[315197302,1708925432303,-500.0,0.00019178,2]
[315197303,1708925432312,-500.0,0.00019178,2]
[315197304,1708925432321,-500.0,0.00019178,2]
[315197305,1708925432330,-500.0,0.00019178,2]
[315197306,1708925432340,-500.0,0.00019178,2]
[315197307,1708925432349,-200.0,0.00019178,2]
[315197308,1708925432358,-500.0,0.00019178,2]
[315197309,1708925432367,-500.0,0.00019178,2]
[315197310,1708925432376,-500.0,0.00019178,2]
[315197311,1708925432385,-368.55067157,0.00019178,2]
[315197312,1708925432395,-500.0,0.00019178,2]
[315197313,1708925432404,-500.0,0.00019178,2]
[315197314,1708925432413,-177.56440176,0.00019178,2]
[315197315,1708925432423,-500.0,0.00019178,2]
[315197316,1708925432431,-500.0,0.00019178,2]
[315197317,1708925432441,-500.0,0.00019178,2]
[315197318,1708925432450,-500.0,0.00019178,2]
[315197319,1708925432458,-599.46,0.00019178,2]
[315197320,1708925432467,-500.0,0.00019178,2]
[315197321,1708925432476,-506.6715186,0.00019178,2]
[315197322,1708925432485,-500.0,0.00019178,2]
[315197323,1708925432494,-500.0,0.00019178,2]
[315197324,1708925432503,-500.0,0.00019178,2]
[315197325,1708925432512,-500.0,0.00019178,2]
[315197326,1708925432522,-500.0,0.00019178,2]
[315197327,1708925432531,-500.0,0.00019178,2]
[315197328,1708925432540,-500.0,0.00019178,2]
[315197329,1708925432549,-500.0,0.00019178,2]
[315197330,1708925432558,-194.44278897,0.00019178,2]
[315197336,1708925438112,-305.55721103,0.00019178,2]
[315197337,1708925438122,-500.0,0.00019178,2]
[315197338,1708925438136,-500.76681216,0.00019178,2]
[315197339,1708925438145,-500.0,0.00019178,2]
[315197340,1708925438156,-500.0,0.00019178,2]
[315197341,1708925438165,-500.0,0.00019178,2]
[315197342,1708925438175,-500.0,0.00019178,2]
[315197343,1708925438184,-359.8403748,0.00019178,2]
[315197344,1708925438193,-501.0884164,0.00019178,2]
[315197345,1708925438202,-500.3462092,0.00019178,2]
[315197346,1708925438211,-234.57397735,0.00019178,2]
[315197347,1708925438221,-500.0,0.00019178,2]
[315197348,1708925438230,-500.0,0.00019178,2]
[315197349,1708925438240,-500.0,0.00019178,2]
[315197350,1708925438249,-500.0,0.00019178,2]
[315197351,1708925438257,-500.0,0.00019178,2]
[315197352,1708925438266,-500.0,0.00019178,2]
[315197353,1708925438275,-500.0,0.00019178,2]
[315197354,1708925438285,-500.58116796,0.00019178,2]
[315197355,1708925438296,-500.0,0.00019178,2]
[315197356,1708925438306,-500.0,0.00019178,2]
[315197357,1708925438315,-491.43084547,0.00019178,2]
[315197358,1708925438324,-501.13519098,0.00019178,2]
[315197359,1708925438333,-266.51557641,0.00019178,2]
[315197360,1708925438342,-500.0,0.00019178,2]
[315197361,1708925438351,-500.0,0.00019178,2]
[315197362,1708925438360,-500.0,0.00019178,2]